bitfinex/quotes_BTCUSD_20241025
["timestamp","ask_amount","ask_price","bid_price","bid_amount"]
[1729873854370,0.15319396,67569.0,67568.0,0.000824]
[1729873854797,0.30369777,67569.0,67568.0,0.000824]
[1729873855471,0.00519796,67569.0,67568.0,0.000824]
[1729873856789,0.005,67571.0,67568.0,0.000824]
[1729873857004,0.005,67572.0,67568.0,0.296817]
[1729873857214,0.005,67572.0,67570.0,0.147994]
[1729873857866,0.005,67572.0,67568.0,0.296817]
[1729873858084,0.17260843,67569.0,67568.0,0.000824]
[1729873858297,0.31560443,67569.0,67568.0,0.000824]
[1729873858507,0.32060443,67569.0,67568.0,0.000824]
[1729873859175,0.433978,67569.0,67568.0,0.000824]
[1729873859407,0.32060443,67569.0,67568.0,0.000824]
[1729873862475,0.73200824,67569.0,67568.0,0.000824]
[1729873863115,0.84566118,67569.0,67568.0,0.000824]
[1729873863608,0.83200824,67569.0,67568.0,0.000824]
[1729873863850,0.84566063,67569.0,67568.0,0.000824]
[1729873864281,0.99616444,67569.0,67568.0,0.000824]
[1729873865788,0.84566063,67569.0,67568.0,0.000824]
[1729873866232,0.84730863,67569.0,67568.0,0.000824]
[1729873868027,0.60299816,67569.0,67568.0,0.000824]
[1729873868274,0.40534577,67569.0,67568.0,0.000824]
[1729873868503,0.57275624,67569.0,67568.0,0.000824]
[1729873868710,0.58642447,67569.0,67568.0,0.000824]
[1729873868915,0.57275624,67569.0,67568.0,0.000824]
[1729873869140,0.58642443,67569.0,67568.0,0.000824]
[1729873870000,1.28339718,67569.0,67568.0,0.000824]
[1729873870223,1.28339718,67569.0,67557.0,0.000837]
[1729873870224,0.71902843,67558.0,67557.0,0.000837]
[1729873870428,0.97594763,67558.0,67557.0,0.000837]
[1729873870698,0.8946416,67558.0,67557.0,0.000837]
[1729873870937,0.90830989,67558.0,67557.0,0.000837]
[1729873871354,0.91830989,67558.0,67557.0,0.000837]
[1729873871559,0.96583049,67558.0,67557.0,0.000837]
[1729873872685,0.31566843,67540.0,67537.0,0.06638754]
[1729873872915,0.32066843,67540.0,67537.0,0.06638754]
[1729873873130,0.31566843,67540.0,67537.0,0.06638754]
[1729873873350,0.32066843,67540.0,67537.0,0.06638754]
[1729873873547,0.31566843,67540.0,67537.0,0.06638754]
[1729873873749,0.16760843,67540.0,67537.0,0.06638754]
[1729873873875,0.31566843,67540.0,67537.0,0.06638754]
[1729873874079,0.31566843,67540.0,67539.0,0.03925836]
[1729873874287,0.46373243,67540.0,67537.0,0.06638754]
[1729873874508,0.148064,67538.0,67537.0,0.06638754]
[1729873876207,0.14826196,67538.0,67537.0,0.06638754]
[1729873876820,0.00019796,67538.0,67537.0,0.06638754]
[1729873877057,0.14826196,67538.0,67537.0,0.06638754]
[1729873877744,0.148067,67537.0,67535.0,0.08851672]
[1729873877950,0.00241917,67538.0,67535.0,0.08851672]
[1729873878577,0.00241917,67538.0,67537.0,0.000824]
[1729873879691,0.31789364,67538.0,67537.0,0.000824]
[1729873880712,0.32289364,67538.0,67537.0,0.000824]
[1729873880947,0.47339745,67538.0,67537.0,0.000824]
[1729873881592,0.30598698,67538.0,67537.0,0.000824]
[1729873882918,0.47188698,67538.0,67537.0,0.000824]
[1729873883992,0.30598698,67538.0,67537.0,0.000824]
[1729873885172,0.15548317,67538.0,67537.0,0.000824]
[1729873885390,0.00741917,67538.0,67537.0,0.000824]
[1729873885840,0.00241917,67538.0,67537.0,0.000824]
[1729873886053,0.005,67538.0,67537.0,0.000824]
[1729873886524,0.153064,67538.0,67537.0,0.000824]
[1729873886740,0.30376577,67538.0,67537.0,0.000824]
[1729873888764,0.31916327,67538.0,67537.0,0.000824]
[1729873890537,0.33280779,67538.0,67537.0,0.000824]
[1729873890986,0.36080779,67538.0,67537.0,0.000824]
[1729873892723,0.36080779,67538.0,67490.0,0.02317141]
[1729873892724,0.14831696,67513.0,67512.0,0.000837]
[1729873892927,0.16760843,67513.0,67512.0,0.000837]
[1729873893140,0.31554922,67513.0,67512.0,0.000837]
[1729873893567,0.46605303,67513.0,67512.0,0.000837]
[1729873893794,0.47105303,67513.0,67512.0,0.000837]
[1729873894890,0.592456,67516.0,67512.0,0.000837]
[1729873894891,0.17241047,67516.0,67512.0,0.000837]
[1729873895109,0.296222,67517.0,67512.0,0.000837]
[1729873895110,0.16741047,67513.0,67512.0,0.000837]
[1729873895535,0.16741047,67522.0,67513.0,0.0798]
[1729873895746,0.22116228,67519.0,67518.0,0.148106]
[1729873895960,0.16741047,67522.0,67515.0,0.29623]
[1729873896189,0.22116228,67521.0,67520.0,0.148104]
[1729873896399,0.22116228,67521.0,67516.0,0.148112]
[1729873896604,0.005,67524.0,67518.0,0.148107]
[1729873896827,0.005,67524.0,67519.0,0.148106]
[1729873897042,0.005,67524.0,67518.0,0.148108]
[1729873897748,0.16741047,67521.0,67512.0,0.000837]
[1729873897970,0.16741047,67521.0,67513.0,0.296239]
[1729873898206,0.005,67524.0,67512.0,0.000837]
[1729873898412,0.22116228,67522.0,67516.0,0.148111]
[1729873898623,0.22116228,67522.0,67512.0,0.297079]
[1729873898624,0.22116228,67522.0,67513.0,0.296239]
[1729873898833,0.36926228,67522.0,67514.0,0.148115]
[1729873899055,0.36926228,67522.0,67515.0,0.148113]
[1729873899701,0.005,67524.0,67514.0,0.296234]
[1729873899915,0.22116228,67521.0,67512.0,0.000837]
[1729873900123,0.16741047,67521.0,67512.0,0.000837]
[1729873900348,0.22116228,67522.0,67515.0,0.148113]
[1729873900567,0.148103,67521.0,67513.0,0.148119]
[1729873900981,0.148105,67520.0,67513.0,0.148119]
[1729873901197,0.51736128,67522.0,67512.0,0.000837]
[1729873901426,0.16741047,67514.0,67512.0,0.000837]
[1729873901631,0.005,67517.0,67512.0,0.000837]
[1729873901632,0.296226,67516.0,67513.0,0.000824]
[1729873901840,0.005,67517.0,67513.0,0.000824]
[1729873902049,0.148117,67514.0,67513.0,0.000824]
[1729873902263,0.29862081,67514.0,67513.0,0.000824]
[1729873902710,0.46277728,67514.0,67513.0,0.000824]
[1729873904005,0.47817478,67514.0,67513.0,0.000824]
[1729873904785,0.63767478,67514.0,67513.0,0.000824]
[1729873905036,0.63767478,67514.0,67513.0,0.148943]
[1729873905037,0.0153975,67514.0,67513.0,0.148943]
[1729873905521,0.0153975,67514.0,67513.0,0.15190531]
[1729873905815,0.0153975,67514.0,67513.0,0.38938937]
[1729873906026,0.0153975,67514.0,67513.0,0.39142706]
[1729873906463,0.22116228,67525.0,67524.0,0.148095]
[1729873906674,0.22116228,67525.0,67516.0,0.296226]
[1729873906880,0.22116228,67525.0,67514.0,0.00998025]
[1729873907093,0.22116228,67525.0,67520.0,0.148103]
[1729873907320,0.444285,67524.0,67513.0,0.000824]
[1729873907519,0.44669381,67524.0,67513.0,0.000824]
[1729873907723,0.15050381,67524.0,67513.0,0.000824]
[1729873908562,0.005,67525.0,67513.0,0.0037862]
[1729873908773,0.005,67525.0,67518.0,0.148106]
[1729873908981,0.148097,67524.0,67514.0,0.444348]
[1729873909191,0.148097,67524.0,67514.0,0.296232]
[1729873909399,0.40645996,67524.0,67513.0,0.000824]
[1729873909615,0.005,67520.0,67513.0,0.000824]
[1729873909843,0.15550381,67520.0,67513.0,0.000824]
[1729873910093,0.30360781,67520.0,67513.0,0.000824]
[1729873910348,0.15550381,67520.0,67514.0,0.148116]
[1729873910579,0.148112,67517.0,67513.0,0.000824]
[1729873910816,0.15550381,67520.0,67513.0,0.000824]
[1729873911285,0.30360781,67520.0,67513.0,0.000824]
[1729873911514,0.005,67522.0,67513.0,0.00378638]
[1729873911739,0.005,67520.0,67516.0,0.148112]
[1729873912258,0.005,67523.0,67516.0,0.148111]
[1729873912492,0.005,67523.0,67517.0,0.148109]
[1729873912813,0.005,67523.0,67515.0,0.29623]
[1729873913109,0.22116228,67528.0,67518.0,0.08]
[1729873913612,0.22616228,67528.0,67524.0,0.148095]
[1729873913838,0.22616228,67528.0,67523.0,0.148096]
[1729873913839,0.22116228,67528.0,67523.0,0.148096]
[1729873914257,0.22116228,67528.0,67518.0,0.08]
[1729873914258,0.22616228,67528.0,67519.0,0.296208]
[1729873914495,0.148082,67530.0,67522.0,0.148099]
[1729873914730,0.005,67528.0,67520.0,0.296208]
[1729873914947,0.005,67532.0,67525.0,0.148092]
[1729873915173,0.005,67532.0,67519.0,0.296212]
[1729873915390,0.005,67532.0,67518.0,0.08]
[1729873915599,0.005,67532.0,67520.0,0.296208]
[1729873915781,0.005,67532.0,67518.0,0.63217015]
[1729873916020,0.005,67532.0,67527.0,0.148088]
[1729873916235,0.005,67532.0,67519.0,0.296212]
[1729873916445,0.005,67532.0,67527.0,0.148087]
[1729873916875,0.005,67532.0,67518.0,0.08]
[1729873917087,0.005,67532.0,67519.0,0.00296167]
[1729873917296,0.22116228,67528.0,67519.0,0.15548406]
[1729873917512,0.005,67532.0,67519.0,0.15548406]
[1729873917739,0.22116228,67528.0,67519.0,0.15548406]
[1729873919251,0.22116228,67535.0,67523.0,0.25595615]
[1729873919465,0.22116228,67535.0,67524.0,0.00296144]
[1729873919677,0.22116228,67528.0,67524.0,0.00296144]
[1729873919890,0.22116228,67535.0,67524.0,0.15346525]
[1729873920099,0.22116228,67535.0,67525.0,0.08088025]
[1729873920383,0.22116228,67535.0,67525.0,0.0759]
[1729873920610,0.148076,67533.0,67520.0,0.0759]
[1729873921033,0.66537828,67535.0,67520.0,0.0759]
[1729873921260,0.22116228,67535.0,67530.0,0.296162]
[1729873921503,0.001648,67538.0,67527.0,0.25595615]
[1729873921504,0.22116228,67534.0,67527.0,0.25595615]
[1729873921715,0.22116228,67534.0,67533.0,0.148075]
[1729873922212,0.005,67537.0,67536.0,0.148069]
[1729873922642,0.005,67537.0,67525.0,0.00463]
[1729873922889,0.001648,67538.0,67537.0,0.148066]
[1729873924643,0.001648,67538.0,67529.0,0.0757]
[1729873924857,0.00240003,67537.0,67530.0,0.00462978]
[1729873925075,0.148074,67534.0,67524.0,0.00462978]
[1729873925294,0.296138,67536.0,67525.0,0.00462978]
[1729873925509,0.296138,67536.0,67519.0,0.00998025]
[1729873925510,0.00240003,67535.0,67520.0,0.00462978]
[1729873925732,0.52394328,67538.0,67525.0,0.148092]
[1729873925733,0.00740003,67537.0,67525.0,0.148092]
[1729873925948,0.148089,67527.0,67522.0,0.15272778]
[1729873926166,0.00240003,67530.0,67522.0,0.148098]
[1729873926380,0.00740003,67530.0,67515.0,0.16853914]
[1729873926592,0.148085,67529.0,67523.0,0.148096]
[1729873926824,0.148085,67529.0,67514.0,0.15132781]
[1729873926825,0.00240003,67529.0,67514.0,0.15132781]
[1729873927037,0.22356231,67529.0,67514.0,0.15132781]
[1729873927254,0.22356231,67529.0,67528.0,0.148086]
[1729873927473,0.005,67530.0,67529.0,0.148084]
[1729873927695,0.68747942,67538.0,67528.0,0.148086]
[1729873927696,0.22281028,67538.0,67528.0,0.148086]
[1729873927971,0.22281028,67538.0,67527.0,0.16853914]
[1729873927972,0.22281028,67538.0,67535.0,0.14807]
[1729873928185,0.22281028,67538.0,67536.0,0.148069]
[1729873928651,0.22281028,67538.0,67537.0,0.148066]
[1729873928652,0.001648,67538.0,67537.0,0.148066]
[1729873929301,0.001648,67538.0,67537.0,0.15102716]
[1729873929748,0.001648,67538.0,67537.0,0.148066]
[1729873930000,0.001648,67538.0,67537.0,0.15269543]
[1729873930256,0.001648,67538.0,67537.0,0.148066]
[1729873930510,0.001648,67538.0,67537.0,0.223166]
[1729873930739,0.001648,67538.0,67537.0,0.22612695]
[1729873930994,0.001648,67538.0,67537.0,0.39124044]
[1729873931259,0.001648,67538.0,67537.0,0.39027949]
[1729873932305,0.001648,67581.0,67537.0,0.39027949]
[1729873932306,0.22116228,67557.0,67556.0,0.148025]
[1729873932515,0.22116228,67557.0,67556.0,0.55928477]
[1729873932723,0.22116228,67566.0,67565.0,0.148005]
[1729873933192,0.001648,67569.0,67565.0,0.148005]
[1729873933193,0.001648,67569.0,67568.0,0.147999]
[1729873933416,0.001648,67569.0,67568.0,0.56221836]
[1729873933663,0.001648,67569.0,67568.0,0.30348306]
[1729873934369,0.001648,67569.0,67568.0,0.64061819]
[1729873934575,0.001648,67569.0,67568.0,0.63765877]
[1729873935016,0.001648,67569.0,67568.0,0.38188306]
[1729873935699,0.001648,67569.0,67568.0,0.147999]
[1729873936378,0.001648,67569.0,67568.0,0.30348306]
[1729873937448,0.001648,67569.0,67568.0,0.31144241]
[1729873937662,0.001648,67569.0,67568.0,0.31048306]
[1729873937904,0.001648,67569.0,67568.0,0.77005877]
[1729873938115,0.001648,67569.0,67568.0,0.77468527]
[1729873938994,0.001648,67569.0,67568.0,0.49390956]
[1729873939661,0.001648,67569.0,67568.0,0.75168527]
[1729873940510,0.001648,67569.0,67568.0,0.74968527]
[1729873940726,0.001648,67569.0,67568.0,0.74505877]
[1729873940947,0.001648,67569.0,67568.0,0.75168499]
[1729873941164,0.001648,67569.0,67568.0,0.77468499]
[1729873941813,0.001648,67569.0,67568.0,0.93758499]
[1729873942033,0.001648,67569.0,67568.0,0.94856032]
[1729873942244,0.001648,67569.0,67568.0,0.66978461]
[1729873942456,0.001648,67569.0,67568.0,0.65380928]
[1729873942672,0.001648,67569.0,67568.0,0.65880928]
[1729873942879,0.001648,67569.0,67568.0,0.65680928]
[1729873943123,0.001648,67569.0,67568.0,0.49590928]
[1729873943406,0.001648,67569.0,67568.0,0.75168499]
[1729873943627,0.001648,67569.0,67568.0,0.49590928]
[1729873943862,0.001648,67569.0,67568.0,0.49390928]
[1729873944333,0.001648,67569.0,67568.0,0.75168525]
[1729873944548,0.001648,67569.0,67568.0,0.75168517]
[1729873944982,0.001648,67569.0,67568.0,0.85592476]
[1729873945191,0.001648,67569.0,67568.0,0.81565758]
[1729873946163,0.001648,67569.0,67568.0,0.98465758]
[1729873946610,0.001648,67569.0,67568.0,0.98607315]
[1729873948721,0.001648,67569.0,67568.0,0.99704416]
[1729873950358,0.001648,67569.0,67568.0,0.90949395]
[1729873951578,0.001648,67569.0,67568.0,0.89389654]
[1729873951826,0.001648,67569.0,67568.0,0.70310957]
[1729873952074,0.001648,67569.0,67568.0,0.52390905]
[1729873952547,0.001648,67569.0,67568.0,0.44310905]
[1729873953026,0.001648,67569.0,67568.0,0.31310905]
[1729873953262,0.001648,67569.0,67568.0,0.30848306]
[1729873954351,0.001648,67569.0,67568.0,0.40848306]
[1729873954565,0.001648,67569.0,67568.0,0.41310905]
[1729873955017,0.001648,67569.0,67568.0,0.72511892]
[1729873955239,0.001648,67569.0,67568.0,0.68013455]
[1729873955668,0.22116228,67579.0,67578.0,0.152977]
[1729873955886,0.22116228,67579.0,67578.0,0.31308705]
[1729873956347,0.001648,67581.0,67580.0,0.147972]
[1729873956556,0.001648,67581.0,67580.0,0.15259799]
[1729873956997,0.079248,67581.0,67580.0,0.15259799]
[1729873957723,0.079248,67581.0,67580.0,0.00462599]
[1729873957724,0.244448,67581.0,67580.0,0.00462599]
[1729873957934,0.244448,67581.0,67554.0,0.39138778]
[1729873957935,0.005,67580.0,67566.0,0.296006]
[1729873958158,0.1682255,67574.0,67570.0,0.147993]
[1729873958383,0.1682255,67574.0,67558.0,0.00998025]
[1729873958384,0.1673,67570.0,67566.0,0.148001]
[1729873958824,0.1673,67570.0,67563.0,0.29602]
[1729873958825,0.2451,67570.0,67563.0,0.148009]
[1729873958855,0.2451,67570.0,67567.0,0.00462729]
[1729873959093,0.2451,67570.0,67569.0,0.147996]
[1729873959339,0.739295,67632.0,67573.0,0.147988]
[1729873959340,0.00240003,67574.0,67573.0,0.147988]
[1729873959567,0.22116228,67577.0,67576.0,0.147981]
[1729873959812,0.22116228,67577.0,67576.0,0.00462729]
[1729873960062,0.25569122,67578.0,67576.0,0.00462729]
[1729873960294,0.25569122,67578.0,67577.0,0.00462729]
[1729873960789,0.40366822,67578.0,67577.0,0.00462729]
[1729873961044,0.64896822,67578.0,67577.0,0.00462729]
[1729873961298,0.64896822,67578.0,67558.0,0.00498025]
[1729873961299,0.005,67576.0,67574.0,0.147983]
[1729873961530,0.005,67576.0,67575.0,0.00462725]
[1729873961951,0.2403,67578.0,67575.0,0.00462725]
[1729873962169,0.2403,67578.0,67577.0,0.147979]
[1729873962170,0.1633,67578.0,67577.0,0.147979]
[1729873962385,0.001648,67581.0,67577.0,0.147979]
[1729873962386,0.001648,67581.0,67580.0,0.147972]
[1729873962603,0.001648,67581.0,67580.0,0.15259872]
[1729873963951,0.001648,67581.0,67580.0,0.30310253]
[1729873964610,0.001648,67581.0,67580.0,0.00462672]
[1729873964833,0.395718,67581.0,67580.0,0.00462672]
[1729873965264,0.247748,67581.0,67580.0,0.00462672]
[1729873965464,0.39811803,67581.0,67580.0,0.00462672]
[1729873965673,0.247748,67581.0,67580.0,0.00462672]
[1729873965879,0.39811803,67581.0,67580.0,0.00462672]
[1729873966086,0.152976,67579.0,67572.0,0.147988]
[1729873966265,0.152976,67579.0,67573.0,0.00462712]
[1729873966564,0.005,67579.0,67574.0,0.00462712]
[1729873966773,0.005,67579.0,67575.0,0.00462712]
[1729873966991,0.005,67579.0,67576.0,0.00462712]
[1729873967220,0.147979,67578.0,67577.0,0.00462712]
[1729873967469,0.25569122,67578.0,67577.0,0.00462712]
[1729873969139,0.40366822,67578.0,67577.0,0.00462712]
[1729873969350,0.25569122,67578.0,67577.0,0.00462712]
[1729873969566,0.40366822,67578.0,67577.0,0.0046271]
[1729873969782,0.40366822,67578.0,67577.0,0.00925428]
[1729873970218,0.25569122,67578.0,67577.0,0.00925432]
[1729873970424,0.40366822,67578.0,67577.0,0.00925432]
[1729873970632,0.25569122,67578.0,67577.0,0.00925432]
[1729873971279,0.27114547,67578.0,67577.0,0.00925432]
[1729873971500,0.4215225,67578.0,67577.0,0.00925432]
[1729873971718,0.16343125,67578.0,67577.0,0.00925432]
[1729873972394,0.01545425,67578.0,67577.0,0.00925432]
[1729873972617,0.01545425,67578.0,67577.0,0.15723332]
[1729873973039,0.01545425,67578.0,67577.0,0.1526061]
[1729873973246,0.01545425,67578.0,67577.0,0.15723272]
[1729873973673,0.01545425,67578.0,67577.0,0.30773653]
[1729873975842,0.01710225,67578.0,67577.0,0.30773653]
[1729873976055,0.01710225,67578.0,67577.0,0.55880065]
[1729873976320,0.01710225,67578.0,67577.0,0.5637809]
[1729873976524,0.01710225,67578.0,67577.0,0.5657809]
[1729873976728,0.01710225,67578.0,67577.0,0.64752589]
[1729873976947,0.01710225,67578.0,67577.0,0.65215183]
[1729873977184,0.01710225,67578.0,67577.0,0.56378022]
[1729873977185,0.01210225,67578.0,67577.0,0.56378022]
[1729873977393,0.01210225,67578.0,67577.0,0.59378022]
[1729873977627,0.001648,67578.0,67577.0,0.59378022]
[1729873978498,0.001648,67578.0,67577.0,0.5063104]
[1729873978714,0.001648,67578.0,67577.0,0.61696803]
[1729873978966,0.001648,67578.0,67577.0,0.5063104]
[1729873979401,0.001648,67578.0,67577.0,0.5838104]
[1729873979613,0.001648,67578.0,67577.0,0.5888104]
[1729873980051,0.001648,67578.0,67577.0,1.0297318]
[1729873980275,0.001648,67578.0,67577.0,0.99429289]
[1729873980486,0.21945828,67585.0,67584.0,0.32116565]
[1729873980693,0.21945828,67585.0,67584.0,0.54268956]
[1729873980900,0.22116228,67594.0,67593.0,0.147944]
[1729873981126,0.22116228,67594.0,67593.0,0.15256994]
[1729873981332,0.22116228,67594.0,67593.0,0.00462594]
[1729873981576,0.147947,67592.0,67582.0,0.443904]
[1729873981804,0.00240003,67594.0,67587.0,0.147956]
[1729873982019,0.00240003,67594.0,67588.0,0.00462618]
[1729873982233,0.147946,67592.0,67589.0,0.00462618]
[1729873982445,0.001676,67596.0,67583.0,0.295932]
[1729873982691,0.147944,67594.0,67587.0,0.147956]
[1729873982937,0.00240003,67594.0,67590.0,0.14795]
[1729873983175,0.149615,67596.0,67589.0,0.147952]
[1729873983411,0.1682214,67594.0,67589.0,0.147952]
[1729873983662,0.1682214,67594.0,67591.0,0.147947]
[1729873983899,0.001676,67596.0,67590.0,0.2959]
[1729873984741,0.001676,67596.0,67591.0,0.17580619]
[1729873984977,0.001676,67596.0,67592.0,0.004626]
[1729873985218,0.001676,67596.0,67593.0,0.15512981]
[1729873985458,0.01377326,67598.0,67594.0,0.004626]
[1729873985701,0.22116228,67600.0,67595.0,0.0120263]
[1729873985920,0.22116228,67600.0,67596.0,0.004626]
[1729873986143,0.1732214,67605.0,67597.0,0.004626]
[1729873986355,0.22116228,67604.0,67594.0,0.15050381]
[1729873986569,0.22116228,67604.0,67598.0,0.00462519]
[1729873986777,0.22116228,67604.0,67599.0,0.00462519]
[1729873986988,0.005,67605.0,67594.0,0.15050381]
[1729873987194,0.006676,67606.0,67595.0,0.00462519]
[1729873987405,0.006676,67606.0,67594.0,0.15050381]
[1729873987406,0.006676,67606.0,67601.0,0.147925]
[1729873987614,0.005,67605.0,67600.0,0.295857]
[1729873987823,0.005,67605.0,67601.0,0.147925]
[1729873988035,0.1732214,67605.0,67599.0,0.14793]
[1729873988245,0.1732214,67605.0,67597.0,0.00462521]
[1729873988246,0.1682214,67601.0,67597.0,0.00462521]
[1729873988484,0.005,67605.0,67587.0,0.34017774]
[1729873988485,0.147943,67594.0,67588.0,0.00462522]
[1729873988717,0.226361,67585.0,67584.0,0.22578822]
[1729873988961,0.2466214,67585.0,67575.0,0.00462647]
[1729873989356,0.147981,67576.0,67574.0,0.22116228]
[1729873989373,0.1682214,67578.0,67575.0,0.22116228]
[1729873989567,0.005,67582.0,67573.0,0.295976]
[1729873989568,0.1732214,67582.0,67573.0,0.295976]
[1729873989777,0.1682214,67582.0,67576.0,0.14798]
[1729873989992,0.17062143,67582.0,67573.0,0.295976]
[1729873990204,0.17062143,67582.0,67576.0,0.147981]
[1729873990421,0.17062143,67582.0,67573.0,0.295976]
[1729873990422,0.2555959,67584.0,67570.0,0.147994]
[1729873990644,0.47675818,67584.0,67578.0,0.147975]
[1729873990850,0.47675818,67584.0,67582.0,0.147966]
[1729873990851,0.22116228,67584.0,67582.0,0.147966]
[1729873991300,0.1699,67587.0,67576.0,0.22116228]
[1729873991523,0.1699,67587.0,67575.0,0.00498025]
[1729873991524,0.22116228,67579.0,67578.0,0.295954]
[1729873991753,0.00240003,67587.0,67575.0,0.005]
[1729873991990,0.22116228,67586.0,67585.0,0.295923]
[1729873992205,0.22116228,67586.0,67585.0,0.147961]
[1729873992408,0.00221955,67588.0,67585.0,0.147961]
[1729873992637,0.22116228,67590.0,67580.0,0.295941]
[1729873992881,0.22116228,67590.0,67576.0,0.15050381]
[1729873992882,0.22116228,67590.0,67577.0,0.00462665]
[1729873993122,0.2555959,67587.0,67577.0,0.00462665]
[1729873993363,0.2555959,67587.0,67576.0,0.00295929]
[1729873993571,0.0761,67592.0,67578.0,0.00295929]
[1729873993779,0.0761,67592.0,67589.0,0.14795]
[1729873993992,0.0761,67592.0,67586.0,0.00295906]
[1729873994183,0.0786,67602.0,67595.0,0.147939]
[1729873994408,0.22116228,67596.0,67595.0,0.147939]
[1729873994583,0.0786,67602.0,67596.0,0.295874]
[1729873994826,0.0786,67602.0,67600.0,0.147927]
[1729873995051,0.0786,67602.0,67583.0,0.295932]
[1729873995052,0.0736,67602.0,67601.0,0.147926]
[1729873995227,0.0736,67602.0,67594.0,0.00462547]
[1729873995460,0.0736,67602.0,67601.0,0.147926]
[1729873995723,0.1636,67605.0,67591.0,0.00498025]
[1729873995941,0.1636,67605.0,67595.0,0.295879]
[1729873996150,0.22116228,67604.0,67603.0,0.147921]
[1729873996371,0.22116228,67604.0,67600.0,0.147928]
[1729873996571,0.5671139,67605.0,67599.0,0.147929]
[1729873996773,0.4191959,67605.0,67602.0,0.147923]
[1729873997006,0.4191959,67605.0,67601.0,0.147924]
[1729873997459,0.4191959,67605.0,67604.0,0.14792]
[1729873997647,0.1636,67605.0,67597.0,0.295867]
[1729873997853,0.1636,67605.0,67592.0,0.15050381]
[1729873997854,0.1636,67605.0,67604.0,0.14792]
[1729873998062,0.001676,67606.0,67605.0,0.147918]
[1729873999573,0.001676,67606.0,67605.0,0.3030464]
[1729873999781,0.001676,67606.0,67605.0,0.30802665]
[1729873999983,0.001676,67606.0,67605.0,0.15254259]
[1729874000200,0.001676,67606.0,67605.0,0.00462459]
[1729874000416,0.001676,67606.0,67594.0,0.23078736]
[1729874000621,0.001676,67606.0,67602.0,0.147923]
[1729874000847,0.001676,67606.0,67601.0,0.295853]
[1729874001239,0.001676,67606.0,67605.0,0.147918]
[1729874001676,0.001676,67606.0,67605.0,0.15254279]
[1729874002120,0.001676,67606.0,67605.0,0.147918]
[1729874003723,0.001676,67606.0,67605.0,0.1525427]
[1729874003980,0.001676,67606.0,67605.0,0.147918]
[1729874004770,0.001676,67606.0,67605.0,0.15087604]
[1729874004978,0.001676,67606.0,67605.0,0.15550063]
[1729874005357,0.001676,67606.0,67605.0,0.15087604]
[1729874005570,0.001676,67606.0,67605.0,0.30340206]
[1729874005774,0.001676,67606.0,67605.0,0.30802665]
[1729874006004,0.001676,67606.0,67605.0,0.15254259]
[1729874006195,0.001676,67606.0,67605.0,0.15254252]
[1729874006406,0.001676,67606.0,67605.0,0.147918]
[1729874006606,0.001676,67606.0,67605.0,0.00462452]
[1729874006718,0.247176,67606.0,67600.0,0.00462452]
[1729874006921,0.001676,67606.0,67605.0,0.147918]
[1729874007334,0.001676,67606.0,67605.0,0.137918]
[1729874008994,0.001676,67606.0,67594.0,0.233562]
[1729874009201,0.001676,67606.0,67603.0,0.147922]
[1729874009405,0.001676,67606.0,67595.0,0.45100766]
[1729874009406,0.22116228,67605.0,67597.0,0.295871]
[1729874009657,0.22116228,67605.0,67584.0,0.000823]
[1729874009658,0.2555959,67596.0,67584.0,0.000823]
[1729874009856,0.295861,67600.0,67584.0,0.000823]
[1729874009857,0.2555959,67588.0,67584.0,0.000823]
[1729874010066,0.5715509,67588.0,67584.0,0.000823]
[1729874010483,0.16826917,67586.0,67584.0,0.000823]
[1729874011520,0.16826917,67586.0,67584.0,0.148786]
[1729874011925,0.16826917,67586.0,67584.0,0.000823]
[1729874012368,0.16826917,67586.0,67585.0,0.147961]
[1729874012788,0.17286023,67604.0,67584.0,0.000823]
[1729874012789,0.16826917,67596.0,67584.0,0.000823]
[1729874012994,0.2521,67597.0,67584.0,0.000823]
[1729874012995,0.16826917,67588.0,67584.0,0.000823]
[1729874013211,0.16826917,67588.0,67585.0,0.147961]
[1729874013458,0.16826917,67588.0,67584.0,0.000823]
[1729874014275,0.16826917,67588.0,67584.0,0.148786]
[1729874014510,0.16826917,67588.0,67584.0,0.000823]
[1729874015212,0.14796,67586.0,67584.0,0.000823]
[1729874015434,0.01784908,67587.0,67584.0,0.000823]
[1729874015636,0.147961,67585.0,67584.0,0.000823]
[1729874016043,0.39896103,67585.0,67584.0,0.000823]
[1729874016276,0.54706481,67585.0,67584.0,0.000823]
[1729874016487,0.2486,67585.0,67584.0,0.000823]
[1729874017568,0.01544905,67587.0,67586.0,0.147959]
[1729874018216,0.01544905,67587.0,67586.0,0.30142164]
[1729874018430,0.01544905,67587.0,67586.0,0.48467106]
[1729874018646,0.01544905,67587.0,67586.0,0.48171223]
[1729874019106,0.01544905,67587.0,67586.0,0.58171223]
[1729874019316,0.01544905,67587.0,67586.0,0.71030036]
[1729874019527,0.01544905,67587.0,67586.0,0.67073825]
[1729874019756,0.22116228,67596.0,67593.0,0.01498025]
[1729874020015,0.22116228,67596.0,67594.0,0.15346227]
[1729874020239,0.22116228,67596.0,67594.0,0.15050381]
[1729874020453,0.015445,67598.0,67594.0,0.15050381]
[1729874021395,0.015445,67598.0,67594.0,0.15512983]
[1729874021626,0.015445,67598.0,67597.0,0.00498025]
[1729874021855,0.015445,67598.0,67597.0,0.16011008]
[1729874022321,0.015445,67598.0,67597.0,0.17011008]
[1729874022839,0.015445,67598.0,67597.0,0.31804508]
[1729874024527,0.015445,67598.0,67597.0,0.42004508]
[1729874024779,0.015445,67598.0,67597.0,0.5732285]
[1729874025012,0.001646,67605.0,67604.0,0.15290025]
[1729874025239,0.001646,67605.0,67604.0,0.30803008]
[1729874026213,0.001646,67605.0,67604.0,0.42003008]
[1729874026454,0.001646,67605.0,67604.0,0.4504313]
[1729874026698,0.001646,67605.0,67604.0,0.51666577]
[1729874027169,0.001646,67605.0,67604.0,0.52910181]
[1729874027395,0.001646,67605.0,67604.0,0.55124361]
[1729874027894,0.001646,67605.0,67604.0,0.54384239]
[1729874028355,0.001646,67605.0,67604.0,0.43046612]
[1729874028585,0.001646,67605.0,67604.0,0.46414022]
[1729874028830,0.001646,67605.0,67604.0,0.48714022]
[1729874029070,0.001646,67605.0,67604.0,0.48713928]